[Event "MČR juniorů a juniorek v rapid šachu 2023"]
[Site "Czech Republic"]
[Date "2023.09.24"]
[Round "9.17"]
[White "Pejrimovsky, Tadeas Rubel"]
[Black "Rucabado, Stefan"]
[Result "0-1"]
[TimeControl "20 min + 5 sec per move"]
[WhiteFideId "23709537"]
[BlackFideId "23730315"]
[WhiteElo "1679"]
[BlackElo "1782"]

1. e4 {[%clk 00:20:04]} c5 {[%clk 00:19:58]} {[%emt 00:00:13]} 2. b4 {[%clk
00:20:05]} {[%emt 00:00:04]} cxb4 {[%clk 00:19:57]} {[%emt 00:00:05]} 3. a3
{[%clk 00:20:09]} bxa3 {[%clk 00:19:56]} {[%emt 00:00:07]} 4. Bxa3 {[%clk
00:20:12]} {[%emt 00:00:02]} Nc6 {[%clk 00:19:57]} {[%emt 00:00:04]} 5. d4
{[%clk 00:20:15]} {[%emt 00:00:02]} d6 {[%clk 00:19:30]} {[%emt 00:00:33]} 6.
c3 {[%clk 00:20:16]} {[%emt 00:00:03]} Nf6 {[%clk 00:19:32]} {[%emt 00:00:03]}
7. Bd3 {[%clk 00:20:20]} g6 {[%clk 00:19:35]} {[%emt 00:00:04]} 8. f4 {[%clk
00:20:24]} Bg7 {[%clk 00:19:38]} {[%emt 00:00:02]} 9. Nf3 {[%clk 00:20:27]}
{[%emt 00:00:01]} O-O {[%clk 00:19:41]} {[%emt 00:00:03]} 10. O-O {[%clk
00:20:26]} {[%emt 00:00:05]} Bg4 {[%clk 00:19:33]} {[%emt 00:00:13]} 11. h3
{[%clk 00:20:20]} {[%emt 00:00:11]} Bxf3 {[%clk 00:19:36]} {[%emt 00:00:02]} 12.
Qxf3 {[%clk 00:20:23]} {[%emt 00:00:02]} Rc8 {[%clk 00:19:29]} {[%emt
00:00:12]} 13. Nd2 {[%clk 00:19:24]} {[%emt 00:01:05]} a6 {[%clk 00:18:44]}
{[%emt 00:00:50]} 14. e5 {[%clk 00:17:57]} {[%emt 00:01:32]} dxe5 {[%clk
00:18:22]} {[%emt 00:00:28]} 15. fxe5 {[%emt 00:00:04]} Nd5 {[%clk 00:18:22]}
{[%emt 00:00:02]} 16. Ne4 {[%emt 00:00:15]} Nxc3 {[%clk 00:18:08]} {[%emt
00:00:06]} 17. Nxc3 {[%clk 00:16:53]} {[%emt 00:01:15]} Qxd4+ {[%clk 00:18:11]}
{[%emt 00:00:01]} 18. Kh1 {[%clk 00:16:56]} {[%emt 00:00:02]} Qxc3 {[%clk
00:18:15]} {[%emt 00:00:02]} 19. Qe2 {[%clk 00:14:42]} {[%emt 00:02:18]} Nxe5
{[%clk 00:17:45]} {[%emt 00:00:35]} 20. Be4 {[%clk 00:14:38]} {[%emt 00:00:09]}
Nc6 {[%clk 00:17:30]} {[%emt 00:00:20]} 21. Bxc6 {[%clk 00:13:46]} {[%emt
00:00:58]} Rxc6 {[%clk 00:17:33]} {[%emt 00:00:02]} 22. Qxe7 {[%clk 00:13:49]}
{[%emt 00:00:03]} Rc7 {[%clk 00:17:18]} {[%emt 00:00:20]} 23. Qh4 {[%clk
00:11:33]} {[%emt 00:02:18]} Rfc8 {[%clk 00:16:39]} {[%emt 00:00:46]} 24. Bd6
{[%clk 00:11:13]} {[%emt 00:00:26]} Qc6 {[%clk 00:14:54]} {[%emt 00:01:49]} 25.
Rad1 {[%clk 00:10:11]} {[%emt 00:01:07]} Rd7 {[%clk 00:14:57]} {[%emt
00:00:02]} 26. Ba3 {[%clk 00:05:09]} {[%emt 00:05:08]} Rxd1 {[%clk 00:14:33]}
{[%emt 00:00:30]} 27. Rxd1 {[%clk 00:05:11]} {[%emt 00:00:02]} Bf6 {[%clk
00:13:49]} {[%emt 00:00:48]} 28. Qf4 {[%clk 00:04:51]} {[%emt 00:00:26]} Qe6
{[%clk 00:12:01]} {[%emt 00:01:53]} 29. Qf2 {[%clk 00:02:45]} {[%emt 00:02:10]}
Bg7 {[%clk 00:10:41]} {[%emt 00:01:25]} 30. Rf1 {[%clk 00:02:17]} {[%emt
00:00:34]} b5 {[%clk 00:10:33]} {[%emt 00:00:12]} 31. Qa7 {[%clk 00:02:10]}
{[%emt 00:00:12]} h5 {[%clk 00:09:22]} {[%emt 00:01:17]} 32. Bb4 {[%clk
00:01:58]} {[%emt 00:00:18]} Qc4 {[%clk 00:09:11]} {[%emt 00:00:15]} 33. Rb1
{[%clk 00:01:41]} {[%emt 00:00:22]} Be5 {[%clk 00:09:14]} {[%emt 00:00:03]} 34.
Qe3 {[%clk 00:01:01]} {[%emt 00:00:44]} Bf4 {[%clk 00:08:56]} {[%emt 00:00:23]}
35. Qe7 {[%clk 00:00:48]} {[%emt 00:00:18]} Bc1 {[%clk 00:08:23]} {[%emt
00:00:38]} 36. Bd6 {[%clk 00:00:38]} {[%emt 00:00:16]} Qf1+ {[%clk 00:08:10]}
{[%emt 00:00:17]} 37. Kh2 {[%clk 00:00:42]} {[%emt 00:00:01]} Bf4+ {[%clk
00:07:37]} {[%emt 00:00:39]} 38. Bxf4 {[%clk 00:00:41]} {[%emt 00:00:06]} Qxf4+
{[%clk 00:07:40]} {[%emt 00:00:02]} 39. Kh1 {[%clk 00:00:43]} {[%emt 00:00:03]}
Rc1+ {[%clk 00:07:44]} {[%emt 00:00:02]} 40. Rxc1 {[%clk 00:00:47]} {[%emt
00:00:01]} Qxc1+ {[%clk 00:07:47]} {[%emt 00:00:02]} 41. Kh2 {[%clk 00:00:50]}
Qf4+ {[%clk 00:07:44]} {[%emt 00:00:08]} 42. Kh1 {[%clk 00:00:52]} {[%emt
00:00:03]} b4 {[%clk 00:07:38]} {[%emt 00:00:12]} 43. Qd8+ {[%clk 00:00:43]}
{[%emt 00:00:13]} Kg7 {[%clk 00:07:41]} {[%emt 00:00:01]} 44. Qa5 {[%clk
00:00:36]} {[%emt 00:00:14]} Qc4 {[%clk 00:07:07]} {[%emt 00:00:39]} 45. Qa1+
{[%clk 00:00:38]} {[%emt 00:00:03]} Kh7 {[%clk 00:07:11]} 46. Qf6 {[%clk
00:00:41]} {[%emt 00:00:03]} a5 {[%clk 00:07:07]} {[%emt 00:00:08]} 47. Kh2
{[%clk 00:00:43]} {[%emt 00:00:03]} a4 {[%clk 00:07:11]} {[%emt 00:00:02]} 48.
g4 {[%clk 00:00:38]} {[%emt 00:00:08]} a3 {[%clk 00:06:56]} {[%emt 00:00:21]}
49. gxh5 {[%clk 00:00:37]} {[%emt 00:00:07]} Qc2+ {[%clk 00:06:57]} {[%emt
00:00:04]} 50. Kg1 {[%clk 00:00:22]} {[%emt 00:00:19]} Qb1+ {[%clk 00:07:00]}
{[%emt 00:00:02]} 0-1

[Event "MČR juniorů a juniorek v rapid šachu 2023"]
[Site "Czech Republic"]
[Date "2023.09.24"]
[Round "9.18"]
[White "Rybackova, Lucie"]
[Black "Rybacek, Martin"]
[Result "1/2-1/2"]
[TimeControl "20 min + 5 sec per move"]
[WhiteFideId "23739207"]
[BlackFideId "23739266"]
[WhiteElo "1768"]
[BlackElo "1755"]

1. b3 {[%clk 00:19:55]} {[%emt 00:00:14]} d5 {[%clk 00:19:34]} {[%emt
00:00:37]} 2. e3 {[%clk 00:19:54]} {[%emt 00:00:06]} Nf6 {[%clk 00:19:19]}
{[%emt 00:00:19]} 3. Nf3 {[%clk 00:19:54]} {[%emt 00:00:05]} g6 {[%clk
00:18:57]} {[%emt 00:00:27]} 4. Bb2 {[%clk 00:19:51]} {[%emt 00:00:08]} Bg7
{[%clk 00:19:00]} {[%emt 00:00:02]} 5. d3 {[%clk 00:19:48]} {[%emt 00:00:08]}
O-O {[%clk 00:18:52]} {[%emt 00:00:13]} 6. Be2 {[%clk 00:19:51]} Bf5 {[%clk
00:17:49]} {[%emt 00:01:10]} 7. Nbd2 {[%clk 00:19:23]} c6 {[%clk 00:16:22]}
{[%emt 00:02:05]} 8. O-O {[%clk 00:19:17]} Nbd7 {[%clk 00:16:03]} {[%emt
00:00:36]} 9. Ne5 {[%clk 00:19:01]} a5 {[%clk 00:14:33]} {[%emt 00:01:55]} 10.
f4 {[%clk 00:18:29]} Nxe5 {[%clk 00:13:54]} {[%emt 00:01:22]} 11. Bxe5 {[%clk
00:18:21]} Qb6 {[%emt 00:02:22]} 12. d4 {[%clk 00:16:43]} a4 {[%clk 00:09:44]}
{[%emt 00:03:53]} 13. g4 {[%clk 00:15:34]} {[%emt 00:01:14]} Bd7 {[%clk
00:09:47]} {[%emt 00:00:02]} 14. g5 {[%clk 00:15:26]} {[%emt 00:00:12]} Ne8
{[%clk 00:09:40]} {[%emt 00:00:12]} 15. Bxg7 {[%clk 00:15:28]} {[%emt
00:00:03]} Nxg7 {[%clk 00:09:32]} {[%emt 00:00:14]} 1/2-1/2

[Event "MČR juniorů a juniorek v rapid šachu 2023"]
[Site "Czech Republic"]
[Date "2023.09.24"]
[Round "9.19"]
[White "Jun, Robert"]
[Black "Nagyova, Daniela"]
[Result "0-1"]
[TimeControl "20 min + 5 sec per move"]
[WhiteFideId "23709510"]
[BlackFideId "390070"]
[WhiteElo "1340"]
[BlackElo "1762"]

1. e4 {[%clk 00:20:09]} e5 {[%clk 00:20:08]} {[%emt 00:00:03]} 2. Nf3 {[%clk
00:20:12]} Nc6 {[%clk 00:20:11]} {[%emt 00:00:03]} 3. Bb5 {[%clk 00:20:16]} f5
{[%clk 00:20:11]} {[%emt 00:00:05]} 4. d3 {[%clk 00:20:18]} {[%emt 00:00:03]}
fxe4 {[%clk 00:20:15]} {[%emt 00:00:02]} 5. dxe4 {[%clk 00:20:22]} {[%emt
00:00:01]} Nf6 {[%clk 00:20:12]} {[%emt 00:00:07]} 6. O-O {[%clk 00:20:21]}
{[%emt 00:00:06]} Bc5 {[%clk 00:20:15]} {[%emt 00:00:03]} 7. c4 {[%clk
00:20:15]} {[%emt 00:00:11]} d6 {[%clk 00:19:35]} {[%emt 00:00:45]} 8. Nc3
{[%clk 00:20:12]} {[%emt 00:00:07]} O-O {[%clk 00:19:17]} {[%emt 00:00:23]} 9.
Bg5 {[%clk 00:20:16]} Bg4 {[%clk 00:18:46]} {[%emt 00:00:37]} 10. Bxc6 {[%clk
00:19:43]} {[%emt 00:00:38]} bxc6 {[%clk 00:18:47]} {[%emt 00:00:04]} 11. h3
{[%clk 00:19:44]} {[%emt 00:00:03]} Bh5 {[%clk 00:18:37]} {[%emt 00:00:15]} 12.
a3 {[%clk 00:19:35]} {[%emt 00:00:14]} Qc8 {[%clk 00:16:33]} {[%emt 00:02:08]}
13. b4 {[%clk 00:19:16]} {[%emt 00:00:24]} Bd4 {[%clk 00:16:13]} {[%emt
00:00:27]} 14. Qd3 {[%clk 00:19:06]} {[%emt 00:00:13]} Bxc3 {[%clk 00:15:47]}
{[%emt 00:00:31]} 15. Qxc3 {[%clk 00:19:05]} {[%emt 00:00:07]} Nxe4 {[%clk
00:15:48]} {[%emt 00:00:04]} 16. Qe3 {[%clk 00:18:33]} {[%emt 00:00:37]} Nxg5
{[%clk 00:10:15]} {[%emt 00:05:39]} 17. Nxg5 {[%clk 00:18:24]} {[%emt
00:00:13]} h6 {[%clk 00:09:28]} {[%emt 00:00:53]} 18. Ne4 {[%clk 00:18:11]}
{[%emt 00:00:17]} Qe6 {[%clk 00:09:04]} {[%emt 00:00:29]} 19. Qc3 {[%clk
00:17:59]} {[%emt 00:00:17]} Rf4 {[%clk 00:08:23]} {[%emt 00:00:46]} 20. Nd2
{[%clk 00:17:39]} {[%emt 00:00:25]} Raf8 {[%clk 00:07:49]} {[%emt 00:00:39]} 21.
c5 {[%clk 00:17:00]} {[%emt 00:00:44]} d5 {[%clk 00:07:03]} {[%emt 00:00:51]}
22. Rae1 {[%clk 00:16:47]} {[%emt 00:00:18]} e4 {[%clk 00:05:07]} {[%emt
00:02:01]} 23. Re3 {[%clk 00:16:10]} {[%emt 00:00:41]} Qf7 {[%clk 00:03:17]}
{[%emt 00:01:55]} 24. f3 {[%clk 00:15:35]} {[%emt 00:00:40]} exf3 {[%clk
00:03:07]} {[%emt 00:00:16]} 25. gxf3 {[%clk 00:15:14]} {[%emt 00:00:26]} d4
{[%clk 00:03:00]} {[%emt 00:00:13]} 0-1

[Event "MČR juniorů a juniorek v rapid šachu 2023"]
[Site "Czech Republic"]
[Date "2023.09.24"]
[Round "9.20"]
[White "Merinsky, Vaclav"]
[Black "Dvorak, Jan"]
[Result "0-1"]
[TimeControl "20 min + 5 sec per move"]
[WhiteFideId "390062"]
[BlackFideId "23730722"]
[WhiteElo "1869"]
[BlackElo "1624"]

1. e4 {[%clk 00:20:08]} {[%emt 00:00:02]} e6 {[%clk 00:20:05]} {[%emt
00:00:06]} 2. Nf3 {[%clk 00:19:42]} {[%emt 00:00:30]} d5 {[%clk 00:20:06]}
{[%emt 00:00:04]} 3. d3 {[%clk 00:19:45]} {[%emt 00:00:03]} Nf6 {[%clk
00:20:01]} {[%emt 00:00:10]} 4. Nc3 {[%clk 00:19:37]} {[%emt 00:00:13]} c5
{[%clk 00:19:47]} {[%emt 00:00:19]} 5. Bf4 {[%clk 00:18:51]} {[%emt 00:00:49]}
Nc6 {[%clk 00:19:36]} {[%emt 00:00:17]} 6. Qd2 {[%clk 00:18:01]} {[%emt
00:00:55]} a6 {[%clk 00:19:23]} {[%emt 00:00:19]} 7. Be2 {[%clk 00:17:30]}
{[%emt 00:00:35]} Be7 {[%clk 00:18:42]} {[%emt 00:00:47]} 8. O-O {[%clk
00:16:56]} {[%emt 00:00:38]} O-O {[%clk 00:18:27]} {[%emt 00:00:20]} 9. exd5
{[%clk 00:15:51]} {[%emt 00:01:10]} exd5 {[%clk 00:18:17]} {[%emt 00:00:14]} 10.
d4 {[%clk 00:15:39]} {[%emt 00:00:16]} Ne4 {[%emt 00:05:17]} 0-1

[Event "MČR juniorů a juniorek v rapid šachu 2023"]
[Site "Czech Republic"]
[Date "2023.09.24"]
[Round "9.21"]
[White "Housa, Jan"]
[Black "Martinkovic, Adam"]
[Result "1-0"]
[TimeControl "20 min + 5 sec per move"]
[WhiteFideId "23736356"]
[BlackFideId "23728019"]
[WhiteElo "1439"]
[BlackElo "1807"]

1. d4 {[%clk 00:20:08]} {[%emt 00:00:02]} c5 {[%clk 00:20:09]} {[%emt
00:00:01]} 2. d5 {[%clk 00:20:12]} e5 {[%clk 00:20:13]} {[%emt 00:00:01]} 3. c4
{[%clk 00:20:14]} {[%emt 00:00:03]} d6 {[%clk 00:20:16]} {[%emt 00:00:02]} 4.
e4 {[%clk 00:20:18]} {[%emt 00:00:01]} f5 {[%clk 00:20:02]} {[%emt 00:00:19]} 5.
Nc3 {[%clk 00:20:05]} {[%emt 00:00:18]} Nf6 {[%clk 00:20:01]} {[%emt 00:00:06]}
6. Bg5 {[%clk 00:19:29]} {[%emt 00:00:41]} Be7 {[%clk 00:19:48]} {[%emt
00:00:18]} 7. Bxf6 {[%clk 00:19:29]} {[%emt 00:00:05]} Bxf6 {[%clk 00:19:47]}
{[%emt 00:00:06]} 8. exf5 {[%clk 00:18:56]} {[%emt 00:00:38]} Bxf5 {[%clk
00:19:49]} {[%emt 00:00:03]} 9. Bd3 {[%clk 00:18:49]} {[%emt 00:00:12]} Bxd3
{[%clk 00:19:37]} {[%emt 00:00:17]} 10. Qxd3 {[%clk 00:18:52]} {[%emt
00:00:02]} O-O {[%clk 00:19:36]} {[%emt 00:00:04]} 11. Nf3 {[%clk 00:18:38]}
{[%emt 00:00:20]} Nd7 {[%clk 00:18:15]} {[%emt 00:01:27]} 12. Ne4 {[%clk
00:18:09]} {[%emt 00:00:33]} Qa5+ {[%clk 00:17:45]} {[%emt 00:00:36]} 13. Kd1
{[%clk 00:18:06]} {[%emt 00:00:08]} Qb6 {[%clk 00:17:12]} {[%emt 00:00:39]} 14.
b3 {[%clk 00:17:17]} {[%emt 00:00:53]} h6 {[%clk 00:16:55]} {[%emt 00:00:22]}
15. h4 {[%clk 00:16:44]} {[%emt 00:00:38]} a5 {[%clk 00:15:12]} {[%emt
00:01:48]} 16. Neg5 {[%clk 00:15:32]} {[%emt 00:01:17]} hxg5 {[%emt 00:01:02]}
17. hxg5 {[%clk 00:15:31]} {[%emt 00:00:01]} Kf7 {[%clk 00:14:12]} {[%emt
00:00:13]} 18. Qf5 {[%clk 00:09:53]} {[%emt 00:05:42]} Rae8 {[%clk 00:12:28]}
{[%emt 00:01:49]} 19. Qxd7+ {[%clk 00:08:08]} {[%emt 00:01:51]} Re7 {[%clk
00:11:59]} {[%emt 00:00:34]} 20. Qf5 {[%clk 00:07:23]} {[%emt 00:00:49]} Qc7
{[%clk 00:10:53]} {[%emt 00:01:12]} 21. gxf6 {[%clk 00:07:09]} {[%emt
00:00:19]} gxf6 {[%clk 00:10:54]} {[%emt 00:00:04]} 22. Ng5+ {[%clk 00:06:36]}
{[%emt 00:00:38]} Ke8 {[%clk 00:10:44]} {[%emt 00:00:15]} 23. Ne6 {[%clk
00:05:29]} {[%emt 00:01:12]} Qd7 {[%clk 00:09:49]} {[%emt 00:01:00]} 24. Qg6+
{[%clk 00:05:25]} {[%emt 00:00:09]} Ref7 {[%clk 00:09:40]} {[%emt 00:00:14]} 25.
Nxf8 {[%clk 00:05:03]} {[%emt 00:00:26]} Kxf8 {[%clk 00:09:32]} {[%emt
00:00:14]} 26. Rh8+ {[%clk 00:04:05]} {[%emt 00:01:03]} Ke7 {[%clk 00:09:34]}
{[%emt 00:00:02]} 27. Qxf7+ {[%clk 00:04:04]} {[%emt 00:00:06]} 1-0

[Event "MČR juniorů a juniorek v rapid šachu 2023"]
[Site "Czech Republic"]
[Date "2023.09.24"]
[Round "9.22"]
[White "Stastna, Martina"]
[Black "Stary, Simon"]
[Result "1-0"]
[TimeControl "20 min + 5 sec per move"]
[WhiteFideId "385123"]
[BlackFideId "23734353"]
[WhiteElo "1725"]
[BlackElo "1518"]

1. e4 {[%clk 00:20:09]} c5 {[%clk 00:20:09]} {[%emt 00:00:01]} 2. Nf3 {[%clk
00:20:12]} {[%emt 00:00:01]} d6 {[%clk 00:20:13]} 3. Bb5+ {[%clk 00:20:08]}
{[%emt 00:00:10]} Bd7 {[%clk 00:20:17]} 4. Bxd7+ {[%clk 00:20:12]} Nxd7 {[%clk
00:20:21]} {[%emt 00:00:01]} 5. O-O {[%clk 00:20:06]} {[%emt 00:00:10]} Ngf6
{[%clk 00:20:25]} {[%emt 00:00:01]} 6. Re1 {[%clk 00:20:09]} {[%emt 00:00:01]}
g6 {[%clk 00:20:28]} {[%emt 00:00:03]} 7. c3 {[%clk 00:20:13]} Bg7 {[%clk
00:20:28]} {[%emt 00:00:04]} 8. d4 {[%clk 00:20:16]} {[%emt 00:00:02]} cxd4
{[%clk 00:20:25]} {[%emt 00:00:09]} 9. cxd4 {[%clk 00:20:20]} d5 {[%clk
00:19:59]} {[%emt 00:00:31]} 10. e5 {[%clk 00:20:07]} {[%emt 00:00:18]} Ne4
{[%clk 00:20:03]} 11. Nc3 {[%clk 00:20:11]} Nxc3 {[%clk 00:20:06]} {[%emt
00:00:03]} 12. bxc3 {[%clk 00:20:15]} Rc8 {[%clk 00:20:01]} {[%emt 00:00:11]}
13. Qb3 {[%clk 00:20:17]} {[%emt 00:00:02]} Nb6 {[%clk 00:19:55]} {[%emt
00:00:12]} 14. Bf4 {[%clk 00:19:40]} {[%emt 00:00:42]} e6 {[%clk 00:19:58]}
{[%emt 00:00:02]} 15. Rac1 {[%clk 00:19:06]} {[%emt 00:00:39]} Qd7 {[%clk
00:20:01]} {[%emt 00:00:02]} 16. Rc2 {[%clk 00:17:48]} {[%emt 00:01:22]} Nc4
{[%clk 00:20:04]} {[%emt 00:00:03]} 17. Rb1 {[%clk 00:17:43]} {[%emt 00:00:10]}
b6 {[%clk 00:20:06]} {[%emt 00:00:04]} 18. a4 {[%clk 00:17:07]} {[%emt
00:00:40]} O-O {[%clk 00:19:59]} {[%emt 00:00:11]} 19. Nd2 {[%clk 00:16:49]}
{[%emt 00:00:24]} Rc6 {[%clk 00:18:34]} {[%emt 00:01:31]} 20. Nxc4 {[%clk
00:15:40]} {[%emt 00:01:13]} Rxc4 {[%emt 00:00:02]} 21. Qb5 Qxb5 {[%clk
00:18:02]} {[%emt 00:00:39]} 22. axb5 {[%clk 00:15:48]} {[%emt 00:00:02]} Rfc8
{[%clk 00:18:06]} 23. Ra2 {[%clk 00:14:18]} {[%emt 00:01:35]} Rxc3 {[%clk
00:16:51]} {[%emt 00:01:21]} 24. Rxa7 {[%clk 00:14:21]} {[%emt 00:00:02]} f6
{[%clk 00:16:47]} {[%emt 00:00:08]} 25. g3 {[%clk 00:13:50]} {[%emt 00:00:36]}
fxe5 {[%clk 00:16:51]} {[%emt 00:00:03]} 26. dxe5 {[%clk 00:13:46]} {[%emt
00:00:08]} Rd8 {[%clk 00:16:11]} {[%emt 00:00:45]} 27. Rb7 {[%clk 00:12:43]}
{[%emt 00:01:08]} d4 {[%clk 00:16:11]} {[%emt 00:00:06]} 28. Rxb6 {[%clk
00:12:44]} {[%emt 00:00:03]} d3 {[%clk 00:16:14]} {[%emt 00:00:02]} 29. Rd6
{[%clk 00:12:23]} {[%emt 00:00:26]} Rb8 {[%clk 00:15:40]} {[%emt 00:00:38]} 30.
b6 {[%emt 00:00:52]} Kf7 {[%emt 00:00:23]} 31. Rd7+ {[%clk 00:10:59]} {[%emt
00:00:14]} Kf8 {[%clk 00:15:43]} {[%emt 00:00:03]} 32. Ra7 {[%clk 00:10:43]}
{[%emt 00:00:20]} Rc6 {[%clk 00:15:24]} {[%emt 00:00:24]} 33. b7 {[%clk
00:10:13]} {[%emt 00:00:34]} Rc7 {[%clk 00:15:28]} {[%emt 00:00:02]} 34. Ra8
{[%clk 00:10:15]} {[%emt 00:00:04]} 1-0

[Event "MČR juniorů a juniorek v rapid šachu 2023"]
[Site "Czech Republic"]
[Date "2023.09.24"]
[Round "9.23"]
[White "Jun, Rostislav"]
[Black "Novotny, Dominik"]
[Result "0-1"]
[TimeControl "20 min + 5 sec per move"]
[WhiteFideId "23719524"]
[BlackFideId "23755601"]
[WhiteElo "1317"]
[BlackElo "1707"]

1. e4 {[%clk 00:20:08]} {[%emt 00:00:02]} c6 {[%clk 00:20:09]} {[%emt
00:00:02]} 2. d4 {[%clk 00:20:10]} {[%emt 00:00:03]} d5 {[%clk 00:20:12]}
{[%emt 00:00:01]} 3. exd5 {[%clk 00:20:14]} {[%emt 00:00:02]} cxd5 {[%clk
00:20:16]} {[%emt 00:00:02]} 4. c4 {[%clk 00:20:16]} {[%emt 00:00:02]} Nf6
{[%clk 00:20:19]} {[%emt 00:00:02]} 5. Nc3 {[%clk 00:20:19]} {[%emt 00:00:02]}
g6 {[%clk 00:20:17]} {[%emt 00:00:07]} 6. Nf3 {[%clk 00:20:21]} {[%emt
00:00:03]} Bg7 {[%clk 00:20:19]} {[%emt 00:00:03]} 7. Be2 {[%clk 00:20:15]}
{[%emt 00:00:11]} O-O {[%clk 00:20:19]} {[%emt 00:00:05]} 8. O-O {[%clk
00:20:18]} {[%emt 00:00:01]} Nc6 {[%clk 00:20:13]} {[%emt 00:00:11]} 9. Be3
{[%clk 00:20:16]} {[%emt 00:00:06]} Bf5 {[%clk 00:18:12]} {[%emt 00:02:07]} 10.
a3 {[%clk 00:20:02]} {[%emt 00:00:20]} Rc8 {[%clk 00:17:51]} {[%emt 00:00:24]}
11. Rc1 {[%clk 00:19:35]} {[%emt 00:00:33]} Kh8 {[%clk 00:17:05]} {[%emt
00:00:51]} 12. h3 {[%clk 00:19:24]} {[%emt 00:00:16]} a6 {[%clk 00:15:11]}
{[%emt 00:02:00]} 13. Qd2 {[%clk 00:19:05]} {[%emt 00:00:22]} dxc4 {[%clk
00:14:26]} {[%emt 00:00:51]} 14. Bxc4 {[%clk 00:18:46]} {[%emt 00:00:24]} Nxd4
{[%clk 00:13:49]} {[%emt 00:00:42]} 15. Nxd4 {[%clk 00:18:43]} {[%emt
00:00:08]} Rxc4 {[%clk 00:13:50]} {[%emt 00:00:03]} 16. Nxf5 {[%clk 00:18:47]}
{[%emt 00:00:02]} gxf5 {[%clk 00:13:43]} {[%emt 00:00:12]} 17. Rcd1 {[%clk
00:18:49]} {[%emt 00:00:02]} Qxd2 {[%clk 00:13:34]} {[%emt 00:00:14]} 18. Rxd2
{[%clk 00:18:53]} {[%emt 00:00:02]} Rc7 {[%clk 00:12:51]} {[%emt 00:00:47]} 19.
Rfd1 {[%clk 00:18:53]} {[%emt 00:00:06]} h5 {[%clk 00:11:24]} {[%emt 00:01:31]}
20. Kf1 {[%clk 00:18:03]} {[%emt 00:00:56]} Ne4 {[%clk 00:10:54]} {[%emt
00:00:35]} 21. Nxe4 {[%clk 00:17:49]} {[%emt 00:00:19]} fxe4 {[%clk 00:10:56]}
{[%emt 00:00:02]} 22. a4 {[%clk 00:17:36]} {[%emt 00:00:18]} Rfc8 {[%clk
00:09:52]} {[%emt 00:01:09]} 23. Ke2 {[%clk 00:14:06]} {[%emt 00:03:35]} Rc2
{[%clk 00:09:32]} {[%emt 00:00:25]} 24. Rb1 {[%clk 00:14:01]} {[%emt 00:00:10]}
f5 {[%clk 00:08:54]} {[%emt 00:00:43]} 25. b3 {[%clk 00:13:27]} {[%emt
00:00:40]} Kh7 {[%clk 00:06:46]} {[%emt 00:02:12]} 26. h4 {[%clk 00:13:04]}
{[%emt 00:00:28]} e5 {[%clk 00:06:21]} {[%emt 00:00:31]} 27. g3 {[%clk
00:12:55]} {[%emt 00:00:14]} Bh6 {[%clk 00:05:52]} {[%emt 00:00:34]} 28. Rbd1
{[%clk 00:12:20]} {[%emt 00:00:40]} f4 {[%clk 00:05:15]} {[%emt 00:00:42]} 29.
Rxc2 {[%clk 00:11:50]} {[%emt 00:00:36]} Rxc2+ {[%clk 00:05:16]} {[%emt
00:00:03]} 30. Bd2 {[%clk 00:11:53]} {[%emt 00:00:01]} e3 {[%clk 00:05:09]}
{[%emt 00:00:11]} 31. gxf4 {[%clk 00:10:55]} {[%emt 00:01:03]} Rxd2+ {[%clk
00:04:59]} {[%emt 00:00:16]} 32. Rxd2 {[%clk 00:10:56]} {[%emt 00:00:05]} exd2
{[%clk 00:05:01]} {[%emt 00:00:03]} 33. Kxd2 {[%clk 00:10:36]} {[%emt
00:00:25]} Bxf4+ {[%clk 00:05:02]} {[%emt 00:00:03]} 34. Kc3 {[%clk 00:10:39]}
{[%emt 00:00:02]} Kg6 {[%clk 00:04:36]} {[%emt 00:00:32]} 35. Kc4 {[%clk
00:10:40]} {[%emt 00:00:04]} e4 {[%clk 00:04:14]} {[%emt 00:00:26]} 36. Kc5
{[%clk 00:10:42]} {[%emt 00:00:03]} Bc7 {[%clk 00:04:14]} {[%emt 00:00:05]} 37.
b4 {[%clk 00:10:45]} {[%emt 00:00:02]} Kf5 {[%clk 00:04:10]} {[%emt 00:00:09]}
38. Kd4 {[%clk 00:10:45]} {[%emt 00:00:05]} Kf4 {[%clk 00:04:09]} {[%emt
00:00:06]} 39. b5 {[%clk 00:10:45]} {[%emt 00:00:05]} axb5 {[%clk 00:04:07]}
{[%emt 00:00:08]} 40. axb5 {[%clk 00:10:48]} {[%emt 00:00:01]} Bb6+ {[%clk
00:04:11]} 41. Kc3 {[%clk 00:10:51]} {[%emt 00:00:02]} Bxf2 {[%clk 00:04:13]}
{[%emt 00:00:03]} 0-1